[Event "Early-Titled-Tuesday-Blitz-August-29-2023"]
[Site "Chess.com"]
[Date "2023.08.29"]
[Round "8"]
[White "scandalgod"]
[Black "Iunusovnuriddin"]
[Result "0-1"]
[WhiteElo "2495"]
[BlackElo "2307"]
[TimeControl "180+1"]
[EndTime "9:26:48 PDT"]
[Termination "Iunusovnuriddin won by resignation"]

1. d4 {[%clk 0:02:53.3]} 1... Nf6 {[%clk 0:02:59.9]} 2. c4 {[%clk 0:02:50.8]}
2... g6 {[%clk 0:02:59.5]} 3. Nc3 {[%clk 0:02:51]} 3... Bg7 {[%clk 0:02:59.8]}
4. e4 {[%clk 0:02:51.2]} 4... d6 {[%clk 0:02:59.8]} 5. Be2 {[%clk 0:02:51.6]}
5... O-O {[%clk 0:03:00.3]} 6. f4 {[%clk 0:02:51.3]} 6... c5 {[%clk 0:02:59.7]}
7. d5 {[%clk 0:02:51.8]} 7... e6 {[%clk 0:03:00]} 8. Nf3 {[%clk 0:02:47.8]} 8...
exd5 {[%clk 0:02:41.5]} 9. cxd5 {[%clk 0:02:48.7]} 9... Re8 {[%clk 0:02:41.4]}
10. e5 {[%clk 0:02:48.7]} 10... dxe5 {[%clk 0:02:36.1]} 11. fxe5 {[%clk
0:02:49.6]} 11... Ng4 {[%clk 0:02:29]} 12. e6 {[%clk 0:02:48.4]} 12... fxe6
{[%clk 0:02:24.8]} 13. Bg5 {[%clk 0:02:48.3]} 13... Qb6 {[%clk 0:02:19.1]} 14.
Qd2 {[%clk 0:02:48.1]} 14... Na6 {[%clk 0:01:49.5]} 15. d6 {[%clk 0:02:27.2]}
15... Bd7 {[%clk 0:01:38.6]} 16. O-O {[%clk 0:02:26.4]} 16... c4+ {[%clk
0:01:38.5]} 17. Kh1 {[%clk 0:02:24.2]} 17... Rac8 {[%clk 0:01:25.1]} 18. Ne4
{[%clk 0:02:15.8]} 18... Qxb2 {[%clk 0:00:53.9]} 19. Rab1 {[%clk 0:01:56.8]}
19... Qxd2 {[%clk 0:00:52.8]} 20. Nfxd2 {[%clk 0:01:56.5]} 20... c3 {[%clk
0:00:45.8]} 21. Nc4 {[%clk 0:01:41.5]} 21... Bc6 {[%clk 0:00:42.2]} 22. Rf4
{[%clk 0:01:17.6]} 22... Bxe4 {[%clk 0:00:39.2]} 23. Rxe4 {[%clk 0:01:12.7]}
23... Nf2+ {[%clk 0:00:39.1]} 24. Kg1 {[%clk 0:01:09.3]} 24... Nxe4 {[%clk
0:00:39.5]} 25. Be7 {[%clk 0:01:06.9]} 25... Nac5 {[%clk 0:00:37.9]} 26. Bf3
{[%clk 0:00:35.1]} 26... Bd4+ {[%clk 0:00:35.4]} 27. Kf1 {[%clk 0:00:32.6]}
27... b5 {[%clk 0:00:29.2]} 28. Rd1 {[%clk 0:00:29]} 28... bxc4 {[%clk
0:00:23.4]} 29. d7 {[%clk 0:00:26.5]} 29... Nxd7 {[%clk 0:00:21.2]} 30. Bxe4
{[%clk 0:00:24.2]} 30... Rxe7 {[%clk 0:00:19.4]} 31. Rxd4 {[%clk 0:00:22.1]}
31... Nf6 {[%clk 0:00:19.6]} 32. Bc2 {[%clk 0:00:18.6]} 32... Rd7 {[%clk
0:00:19.8]} 33. Rf4 {[%clk 0:00:16.3]} 33... Rd2 {[%clk 0:00:19.5]} 0-1

[Event "Early-Titled-Tuesday-Blitz-August-29-2023"]
[Site "Chess.com"]
[Date "2023.08.29"]
[Round "8"]
[White "Rsnr"]
[Black "chess94cu"]
[Result "1/2-1/2"]
[WhiteElo "2894"]
[BlackElo "2718"]
[TimeControl "180+1"]
[EndTime "9:26:49 PDT"]
[Termination "Game drawn by repetition"]

1. d4 {[%clk 0:03:00]} 1... Nf6 {[%clk 0:02:58.1]} 2. c4 {[%clk 0:02:59.2]} 2...
e6 {[%clk 0:02:58.2]} 3. Nf3 {[%clk 0:02:59.2]} 3... d5 {[%clk 0:02:57.5]} 4. e3
{[%clk 0:02:59.1]} 4... a6 {[%clk 0:02:56.3]} 5. b3 {[%clk 0:02:58.8]} 5... b6
{[%clk 0:02:55.9]} 6. Bd3 {[%clk 0:02:57.9]} 6... Bb7 {[%clk 0:02:56.6]} 7. O-O
{[%clk 0:02:57.6]} 7... Nbd7 {[%clk 0:02:56.9]} 8. Bb2 {[%clk 0:02:57.9]} 8...
Bd6 {[%clk 0:02:57]} 9. Qe2 {[%clk 0:02:56]} 9... O-O {[%clk 0:02:56.5]} 10.
Nbd2 {[%clk 0:02:56.2]} 10... Ne4 {[%clk 0:02:49.6]} 11. Rad1 {[%clk 0:02:41.8]}
11... Qe7 {[%clk 0:02:46.2]} 12. Ne5 {[%clk 0:02:37.9]} 12... Nxe5 {[%clk
0:02:24.1]} 13. dxe5 {[%clk 0:02:38.5]} 13... Bb4 {[%clk 0:02:24.2]} 14. Nxe4
{[%clk 0:02:24.5]} 14... dxe4 {[%clk 0:02:25.1]} 15. Bc2 {[%clk 0:02:24.7]}
15... Rfd8 {[%clk 0:02:14.6]} 16. Rd4 {[%clk 0:02:20.3]} 16... Bc5 {[%clk
0:02:08.4]} 17. Rxd8+ {[%clk 0:02:18.7]} 17... Rxd8 {[%clk 0:02:09.3]} 18. Rd1
{[%clk 0:02:18.1]} 18... Rd7 {[%clk 0:01:59.6]} 19. Bc3 {[%clk 0:01:17.7]} 19...
a5 {[%clk 0:01:56.6]} 20. Rd2 {[%clk 0:01:17]} 20... Qd8 {[%clk 0:01:52.7]} 21.
Rxd7 {[%clk 0:01:03.6]} 21... Qxd7 {[%clk 0:01:51.6]} 22. h4 {[%clk 0:00:58.3]}
22... Bb4 {[%clk 0:01:45.8]} 23. Bd4 {[%clk 0:00:58.6]} 23... Be7 {[%clk
0:00:59.5]} 24. Qg4 {[%clk 0:00:52.8]} 24... c5 {[%clk 0:00:58.4]} 25. Bc3
{[%clk 0:00:53]} 25... Qc6 {[%clk 0:00:59.1]} 26. h5 {[%clk 0:00:51.7]} 26... h6
{[%clk 0:00:58.6]} 27. Qd1 {[%clk 0:00:42.7]} 27... Kf8 {[%clk 0:00:48.7]} 28.
a3 {[%clk 0:00:37.1]} 28... Ke8 {[%clk 0:00:47.1]} 29. Qg4 {[%clk 0:00:36.8]}
29... Kf8 {[%clk 0:00:46.8]} 30. Qd1 {[%clk 0:00:34.6]} 30... Qc7 {[%clk
0:00:46.9]} 31. g3 {[%clk 0:00:18.3]} 31... Kg8 {[%clk 0:00:46.3]} 32. Kh2
{[%clk 0:00:17.6]} 32... Kf8 {[%clk 0:00:43.2]} 33. Qg4 {[%clk 0:00:18.5]} 33...
Qc6 {[%clk 0:00:42.5]} 34. Qd1 {[%clk 0:00:17.8]} 34... Qc7 {[%clk 0:00:41.2]}
35. Kh3 {[%clk 0:00:17.7]} 35... Kg8 {[%clk 0:00:36.2]} 36. Qd2 {[%clk
0:00:16.2]} 36... Kf8 {[%clk 0:00:35.5]} 37. Qd1 {[%clk 0:00:11.4]} 37... Kg8
{[%clk 0:00:34]} 38. Kh2 {[%clk 0:00:09.9]} 38... Kf8 {[%clk 0:00:33.8]} 1/2-1/2

[Event "Early-Titled-Tuesday-Blitz-August-29-2023"]
[Site "Chess.com"]
[Date "2023.08.29"]
[Round "8"]
[White "KorolDimitriy75"]
[Black "Lady_Nika"]
[Result "0-1"]
[WhiteElo "2346"]
[BlackElo "2472"]
[TimeControl "180+1"]
[EndTime "9:26:49 PDT"]
[Termination "Lady_Nika won on time"]

1. d4 {[%clk 0:03:00.9]} 1... d5 {[%clk 0:02:59.7]} 2. c4 {[%clk 0:03:00.7]}
2... e6 {[%clk 0:02:59.8]} 3. Nc3 {[%clk 0:03:00.9]} 3... Nf6 {[%clk 0:02:59.4]}
4. Bg5 {[%clk 0:03:00.5]} 4... Be7 {[%clk 0:02:57.9]} 5. cxd5 {[%clk 0:03:00.3]}
5... exd5 {[%clk 0:02:57.7]} 6. e3 {[%clk 0:03:00.1]} 6... O-O {[%clk
0:02:57.1]} 7. Bd3 {[%clk 0:02:59.9]} 7... c6 {[%clk 0:02:57.6]} 8. Qc2 {[%clk
0:02:59.7]} 8... Nbd7 {[%clk 0:02:57.5]} 9. Nge2 {[%clk 0:02:59.6]} 9... Re8
{[%clk 0:02:57.8]} 10. f3 {[%clk 0:02:59.8]} 10... b5 {[%clk 0:02:56.6]} 11. O-O
{[%clk 0:02:58.8]} 11... h6 {[%clk 0:02:56.5]} 12. Bh4 {[%clk 0:02:58.5]} 12...
b4 {[%clk 0:02:56.9]} 13. Na4 {[%clk 0:02:57.9]} 13... Bb7 {[%clk 0:02:56.8]}
14. Rad1 {[%clk 0:02:53.7]} 14... a5 {[%clk 0:02:54.4]} 15. Bf2 {[%clk
0:02:44.6]} 15... Nb6 {[%clk 0:02:49.6]} 16. Nc5 {[%clk 0:02:33.6]} 16... Bxc5
{[%clk 0:02:48.1]} 17. Qxc5 {[%clk 0:02:34.5]} 17... Nbd7 {[%clk 0:02:44.2]} 18.
Qc2 {[%clk 0:02:34.1]} 18... Qb6 {[%clk 0:02:41.3]} 19. h3 {[%clk 0:02:23.9]}
19... Rac8 {[%clk 0:02:40.1]} 20. e4 {[%clk 0:02:19.9]} 20... dxe4 {[%clk
0:02:32.7]} 21. fxe4 {[%clk 0:02:20.8]} 21... Nf8 {[%clk 0:02:24.5]} 22. Nf4
{[%clk 0:01:50.9]} 22... Ba6 {[%clk 0:02:22.8]} 23. e5 {[%clk 0:01:14.1]} 23...
Nd5 {[%clk 0:02:19.6]} 24. Nh5 {[%clk 0:00:58.8]} 24... Ne6 {[%clk 0:02:13.8]}
25. Bxa6 {[%clk 0:00:43.1]} 25... Qxa6 {[%clk 0:02:06.5]} 26. Qe4 {[%clk
0:00:43.1]} 26... Red8 {[%clk 0:01:47.3]} 27. Qg4 {[%clk 0:00:33.9]} 27... Kh8
{[%clk 0:01:40.2]} 28. Bh4 {[%clk 0:00:16]} 28... Ne3 {[%clk 0:01:31.8]} 29. Qf3
{[%clk 0:00:09.7]} 29... Nxf1 {[%clk 0:01:27.9]} 30. Bxd8 {[%clk 0:00:08]} 30...
Rxd8 {[%clk 0:01:27.5]} 31. Rxf1 {[%clk 0:00:07.4]} 31... Ng5 {[%clk 0:01:24.4]}
32. Qf4 {[%clk 0:00:04.5]} 32... Qd3 {[%clk 0:01:19.9]} 33. h4 {[%clk 0:00:04]}
33... Rxd4 {[%clk 0:01:19.2]} 34. Qf2 {[%clk 0:00:01.6]} 34... Qg6 {[%clk
0:00:32.5]} 0-1

[Event "Early-Titled-Tuesday-Blitz-August-29-2023"]
[Site "Chess.com"]
[Date "2023.08.29"]
[Round "8"]
[White "tptagain"]
[Black "wonderfultime"]
[Result "0-1"]
[WhiteElo "2889"]
[BlackElo "2980"]
[TimeControl "180+1"]
[EndTime "9:26:51 PDT"]
[Termination "wonderfultime won by resignation"]

1. Nf3 {[%clk 0:03:00.9]} 1... d5 {[%clk 0:02:58.3]} 2. e3 {[%clk 0:03:00.9]}
2... Nf6 {[%clk 0:02:58.3]} 3. c4 {[%clk 0:03:01.1]} 3... c6 {[%clk 0:02:58.7]}
4. Nc3 {[%clk 0:03:00.6]} 4... a6 {[%clk 0:02:59.2]} 5. d4 {[%clk 0:02:58.8]}
5... Bf5 {[%clk 0:02:59.4]} 6. h3 {[%clk 0:02:55.7]} 6... e6 {[%clk 0:02:58.8]}
7. g4 {[%clk 0:02:54.1]} 7... Bg6 {[%clk 0:02:49.7]} 8. Ne5 {[%clk 0:02:54.1]}
8... Nfd7 {[%clk 0:02:39.8]} 9. Nxg6 {[%clk 0:02:51.5]} 9... hxg6 {[%clk
0:02:40.7]} 10. Bg2 {[%clk 0:02:47.6]} 10... dxc4 {[%clk 0:02:36.2]} 11. Qe2
{[%clk 0:02:45]} 11... Nb6 {[%clk 0:02:25.2]} 12. O-O {[%clk 0:02:43.9]} 12...
N8d7 {[%clk 0:02:21.8]} 13. e4 {[%clk 0:02:40.6]} 13... e5 {[%clk 0:02:18.8]}
14. Be3 {[%clk 0:02:18.7]} 14... exd4 {[%clk 0:02:17.9]} 15. Bxd4 {[%clk
0:02:19.6]} 15... Bc5 {[%clk 0:02:16.8]} 16. Rad1 {[%clk 0:01:34.4]} 16... Bxd4
{[%clk 0:02:15.4]} 17. Rxd4 {[%clk 0:01:35.3]} 17... Qe7 {[%clk 0:02:16.3]} 18.
e5 {[%clk 0:01:31.7]} 18... O-O {[%clk 0:01:58]} 19. f4 {[%clk 0:01:27.9]} 19...
g5 {[%clk 0:01:56.9]} 20. fxg5 {[%clk 0:01:27]} 20... Qxe5 {[%clk 0:01:53.1]}
21. Qd2 {[%clk 0:01:23.7]} 21... Nc5 {[%clk 0:01:39.6]} 22. Re1 {[%clk
0:00:54.8]} 22... Qc7 {[%clk 0:01:39.8]} 23. Ne4 {[%clk 0:00:51]} 23... Nxe4
{[%clk 0:01:32.4]} 24. Rdxe4 {[%clk 0:00:51.9]} 24... Rad8 {[%clk 0:01:26.5]}
25. Qf2 {[%clk 0:00:51.7]} 25... Rd6 {[%clk 0:01:15.2]} 26. h4 {[%clk
0:00:47.8]} 26... Qd8 {[%clk 0:01:11.3]} 27. R1e2 {[%clk 0:00:26.1]} 27... Rd1+
{[%clk 0:01:05.8]} 28. Kh2 {[%clk 0:00:26.6]} 28... Rd3 {[%clk 0:01:03.5]} 29.
Qf4 {[%clk 0:00:26.5]} 29... Nd5 {[%clk 0:01:03.4]} 30. Qe5 {[%clk 0:00:26.8]}
30... c3 {[%clk 0:01:02.2]} 31. Rf2 {[%clk 0:00:25.3]} 31... Rd2 {[%clk
0:01:00.2]} 32. Ree2 {[%clk 0:00:25.5]} 32... cxb2 {[%clk 0:00:56.7]} 33. Be4
{[%clk 0:00:21.5]} 33... Rxe2 {[%clk 0:00:48.2]} 34. Rxe2 {[%clk 0:00:22.4]}
34... Re8 {[%clk 0:00:45.4]} 35. Qxb2 {[%clk 0:00:22.7]} 35... Nf4 {[%clk
0:00:43.8]} 36. Re3 {[%clk 0:00:16.8]} 36... Ng6 {[%clk 0:00:41.7]} 37. Qf2
{[%clk 0:00:16.4]} 37... Qd6+ {[%clk 0:00:39.1]} 38. Kg1 {[%clk 0:00:16.5]}
38... Qd1+ {[%clk 0:00:34]} 39. Re1 {[%clk 0:00:16.6]} 39... Qxg4+ {[%clk
0:00:34.4]} 40. Bg2 {[%clk 0:00:17.1]} 40... Rxe1+ {[%clk 0:00:33.6]} 41. Qxe1
{[%clk 0:00:18]} 0-1

[Event "Early-Titled-Tuesday-Blitz-August-29-2023"]
[Site "Chess.com"]
[Date "2023.08.29"]
[Round "8"]
[White "jcreyes69"]
[Black "Maus7"]
[Result "0-1"]
[WhiteElo "2380"]
[BlackElo "2503"]
[TimeControl "180+1"]
[EndTime "9:26:51 PDT"]
[Termination "Maus7 won by resignation"]

1. e4 {[%clk 0:03:00.9]} 1... e5 {[%clk 0:02:49.3]} 2. Nf3 {[%clk 0:02:59.5]}
2... Nc6 {[%clk 0:02:49.2]} 3. Bb5 {[%clk 0:02:59.6]} 3... a6 {[%clk 0:02:49.1]}
4. Bxc6 {[%clk 0:03:00]} 4... dxc6 {[%clk 0:02:50]} 5. O-O {[%clk 0:03:00.2]}
5... Bd6 {[%clk 0:02:50.2]} 6. d4 {[%clk 0:02:41.8]} 6... exd4 {[%clk
0:02:51.1]} 7. Bg5 {[%clk 0:02:38.8]} 7... f6 {[%clk 0:02:46.5]} 8. Bh4 {[%clk
0:02:35]} 8... Bg4 {[%clk 0:02:45.2]} 9. Nbd2 {[%clk 0:02:28.5]} 9... c5 {[%clk
0:02:38.4]} 10. h3 {[%clk 0:02:23.1]} 10... Be6 {[%clk 0:02:33.5]} 11. e5 {[%clk
0:02:17]} 11... Be7 {[%clk 0:02:33.6]} 12. exf6 {[%clk 0:02:17.3]} 12... Nxf6
{[%clk 0:02:28.3]} 13. Re1 {[%clk 0:02:16.5]} 13... Bd5 {[%clk 0:02:20.9]} 14.
Qe2 {[%clk 0:02:15.9]} 14... Qd6 {[%clk 0:02:07]} 15. Bg3 {[%clk 0:02:10.1]}
15... Qd7 {[%clk 0:01:57]} 16. Ne5 {[%clk 0:02:08.4]} 16... Qb5 {[%clk
0:01:53.3]} 17. Nec4 {[%clk 0:01:46.5]} 17... Qd7 {[%clk 0:01:39.2]} 18. Ne5
{[%clk 0:01:40.1]} 18... Qb5 {[%clk 0:01:38.6]} 19. Ndc4 {[%clk 0:01:30.5]}
19... O-O {[%clk 0:01:26.7]} 20. a4 {[%clk 0:01:21.3]} 20... Qe8 {[%clk
0:01:24.2]} 21. Nf3 {[%clk 0:01:08.7]} 21... Ne4 {[%clk 0:01:16]} 22. Bxc7
{[%clk 0:01:04]} 22... Qc6 {[%clk 0:01:05.7]} 23. Be5 {[%clk 0:00:58]} 23...
Rae8 {[%clk 0:00:47.3]} 24. Ncd2 {[%clk 0:00:56.9]} 24... Nxd2 {[%clk
0:00:42.3]} 25. Nxd2 {[%clk 0:00:57.8]} 25... Bxg2 {[%clk 0:00:41]} 26. Qg4
{[%clk 0:00:57.8]} 26... Bf6 {[%clk 0:00:32.7]} 27. f4 {[%clk 0:00:19.8]} 27...
Bxe5 {[%clk 0:00:23.8]} 28. fxe5 {[%clk 0:00:20.7]} 28... Bd5 {[%clk 0:00:21.1]}
29. h4 {[%clk 0:00:19.4]} 29... Qh6 {[%clk 0:00:17.4]} 30. Re2 {[%clk
0:00:15.9]} 30... Rf4 {[%clk 0:00:16.6]} 31. Qd7 {[%clk 0:00:14.7]} 31... Qg6+
{[%clk 0:00:12.2]} 32. Kh2 {[%clk 0:00:11.5]} 32... Rxh4+ {[%clk 0:00:10.9]} 33.
Qh3 {[%clk 0:00:12.3]} 33... Rxh3+ {[%clk 0:00:08.7]} 34. Kxh3 {[%clk
0:00:13.2]} 34... Qh5+ {[%clk 0:00:09.1]} 35. Kg3 {[%clk 0:00:12.9]} 35... Qxe2
{[%clk 0:00:10]} 36. Rf1 {[%clk 0:00:12.3]} 36... Qxd2 {[%clk 0:00:08.6]} 37.
Rf8+ {[%clk 0:00:13.2]} 0-1

[Event "Early-Titled-Tuesday-Blitz-August-29-2023"]
[Site "Chess.com"]
[Date "2023.08.29"]
[Round "8"]
[White "abhidabhi"]
[Black "Aygehovit1992"]
[Result "1-0"]
[WhiteElo "2910"]
[BlackElo "2740"]
[TimeControl "180+1"]
[EndTime "9:26:52 PDT"]
[Termination "abhidabhi won by resignation"]

1. c4 {[%clk 0:03:00.9]} 1... g6 {[%clk 0:02:58.3]} 2. Nf3 {[%clk 0:02:58]} 2...
Bg7 {[%clk 0:02:58.8]} 3. Nc3 {[%clk 0:02:57.4]} 3... d6 {[%clk 0:02:56.8]} 4.
g3 {[%clk 0:02:56.7]} 4... Nc6 {[%clk 0:02:56.5]} 5. Bg2 {[%clk 0:02:56.6]} 5...
e5 {[%clk 0:02:56.9]} 6. d3 {[%clk 0:02:56.9]} 6... f5 {[%clk 0:02:56.1]} 7. O-O
{[%clk 0:02:56.2]} 7... Nf6 {[%clk 0:02:56.8]} 8. Bg5 {[%clk 0:02:56]} 8... h6
{[%clk 0:02:56.4]} 9. Bxf6 {[%clk 0:02:55.9]} 9... Bxf6 {[%clk 0:02:57.3]} 10.
Rb1 {[%clk 0:02:54.3]} 10... h5 {[%clk 0:02:54.3]} 11. h4 {[%clk 0:02:51.2]}
11... Be6 {[%clk 0:02:47.3]} 12. Nd5 {[%clk 0:02:50.2]} 12... Bxd5 {[%clk
0:02:45.9]} 13. cxd5 {[%clk 0:02:50]} 13... Ne7 {[%clk 0:02:43.7]} 14. Qb3
{[%clk 0:02:44.6]} 14... b6 {[%clk 0:02:40.1]} 15. Rbc1 {[%clk 0:02:44.3]} 15...
Kf7 {[%clk 0:02:26.2]} 16. Rc2 {[%clk 0:02:43]} 16... Rc8 {[%clk 0:02:24.5]} 17.
Rfc1 {[%clk 0:02:41.6]} 17... f4 {[%clk 0:02:04.1]} 18. gxf4 {[%clk 0:02:27.2]}
18... exf4 {[%clk 0:02:03.7]} 19. Rc4 {[%clk 0:02:27.4]} 19... Nf5 {[%clk
0:01:39.6]} 20. Rxf4 {[%clk 0:02:26.4]} 20... Be5 {[%clk 0:01:19.5]} 21. Re4
{[%clk 0:02:08.1]} 21... Re8 {[%clk 0:01:03.9]} 22. Bh3 {[%clk 0:02:02.8]} 22...
Qf6 {[%clk 0:01:01.6]} 23. Qa4 {[%clk 0:01:49.6]} 23... Re7 {[%clk 0:00:57]} 24.
Nxe5+ {[%clk 0:01:38.6]} 24... dxe5 {[%clk 0:00:51.9]} 25. Rc6 {[%clk
0:01:38.4]} 25... Qg7 {[%clk 0:00:41.3]} 26. d6 {[%clk 0:01:38.9]} 26... Rd7
{[%clk 0:00:31.2]} 27. Qc4+ {[%clk 0:01:27.6]} 27... Kf8 {[%clk 0:00:30.4]} 28.
Qe6 {[%clk 0:01:24.6]} 28... Re8 {[%clk 0:00:19.3]} 29. dxc7 {[%clk 0:01:22.7]}
29... Rxc7 {[%clk 0:00:16.4]} 30. Rxc7 {[%clk 0:01:17.5]} 30... Rxe6 {[%clk
0:00:06.4]} 31. Rxg7 {[%clk 0:01:17.4]} 31... Kxg7 {[%clk 0:00:07.3]} 32. Rc4
{[%clk 0:01:17.7]} 32... Re7 {[%clk 0:00:05.3]} 33. Kg2 {[%clk 0:01:16.1]} 33...
Nd4 {[%clk 0:00:04.5]} 34. e3 {[%clk 0:01:15.9]} 34... Nb5 {[%clk 0:00:03.7]}
35. a4 {[%clk 0:01:12.9]} 35... Nd6 {[%clk 0:00:04.1]} 36. Rc6 {[%clk
0:01:13.3]} 36... Ne8 {[%clk 0:00:03.9]} 37. Kf3 {[%clk 0:01:12.8]} 37... Nf6
{[%clk 0:00:04.2]} 38. b4 {[%clk 0:01:10.5]} 38... e4+ {[%clk 0:00:04.4]} 39.
dxe4 {[%clk 0:01:10.5]} 39... Nxe4 {[%clk 0:00:05.3]} 40. a5 {[%clk 0:01:09.6]}
40... bxa5 {[%clk 0:00:05.4]} 41. bxa5 {[%clk 0:01:10.5]} 41... g5 {[%clk
0:00:03.6]} 42. Be6 {[%clk 0:01:05]} 42... Nf6 {[%clk 0:00:02.9]} 43. hxg5
{[%clk 0:01:04.6]} 43... Nh7 {[%clk 0:00:03.1]} 44. Kf4 {[%clk 0:01:02.9]} 44...
h4 {[%clk 0:00:02.4]} 45. Bf5 {[%clk 0:01:02.1]} 45... Rf7 {[%clk 0:00:01.8]}
46. Kg4 {[%clk 0:00:59.5]} 46... h3 {[%clk 0:00:01.6]} 47. Rh6 {[%clk
0:00:54.5]} 47... h2 {[%clk 0:00:02.5]} 48. Rxh7+ {[%clk 0:00:54.5]} 48... Kg8
{[%clk 0:00:02.4]} 49. Rxh2 {[%clk 0:00:55.1]} 1-0

[Event "Early-Titled-Tuesday-Blitz-August-29-2023"]
[Site "Chess.com"]
[Date "2023.08.29"]
[Round "8"]
[White "Kubas1010"]
[Black "ProfessorChess101"]
[Result "1-0"]
[WhiteElo "2644"]
[BlackElo "2420"]
[TimeControl "180+1"]
[EndTime "9:26:52 PDT"]
[Termination "Kubas1010 won by checkmate"]

1. d4 {[%clk 0:02:54.9]} 1... d5 {[%clk 0:02:58.4]} 2. c4 {[%clk 0:02:54.1]}
2... e6 {[%clk 0:02:58.1]} 3. Nf3 {[%clk 0:02:54.7]} 3... Nf6 {[%clk 0:02:57.3]}
4. Nc3 {[%clk 0:02:54.5]} 4... Nbd7 {[%clk 0:02:57]} 5. cxd5 {[%clk 0:02:47.9]}
5... exd5 {[%clk 0:02:56.6]} 6. Bg5 {[%clk 0:02:48.5]} 6... Bb4 {[%clk
0:02:56.8]} 7. e3 {[%clk 0:02:45.9]} 7... O-O {[%clk 0:02:55.6]} 8. Rc1 {[%clk
0:02:40.7]} 8... c6 {[%clk 0:02:55.4]} 9. Nd2 {[%clk 0:02:37.2]} 9... Re8 {[%clk
0:02:54.4]} 10. Bd3 {[%clk 0:02:30.5]} 10... Nf8 {[%clk 0:02:53.3]} 11. O-O
{[%clk 0:02:29.5]} 11... Ng6 {[%clk 0:02:48]} 12. e4 {[%clk 0:02:07.4]} 12...
dxe4 {[%clk 0:02:42]} 13. Ndxe4 {[%clk 0:02:07.4]} 13... Be7 {[%clk 0:02:42.6]}
14. Re1 {[%clk 0:01:58.6]} 14... Be6 {[%clk 0:02:33.9]} 15. Nc5 {[%clk
0:01:55.2]} 15... Bxc5 {[%clk 0:02:14.8]} 16. dxc5 {[%clk 0:01:55.1]} 16... h6
{[%clk 0:02:13.5]} 17. Bxf6 {[%clk 0:01:47.8]} 17... Qxf6 {[%clk 0:02:14.4]} 18.
Ne4 {[%clk 0:01:48.2]} 18... Qh4 {[%clk 0:01:43.3]} 19. Nd6 {[%clk 0:01:45.1]}
19... Nf4 {[%clk 0:01:40]} 20. Nxe8 {[%clk 0:01:36.8]} 20... Rxe8 {[%clk
0:01:30.4]} 21. Qf3 {[%clk 0:01:33]} 21... Rd8 {[%clk 0:01:25.6]} 22. Bf1 {[%clk
0:01:23.6]} 22... Bd5 {[%clk 0:01:02.8]} 23. Qg3 {[%clk 0:01:23.2]} 23... Qf6
{[%clk 0:01:03.5]} 24. Rcd1 {[%clk 0:01:12.2]} 24... h5 {[%clk 0:00:55.3]} 25.
h4 {[%clk 0:01:11]} 25... Ne6 {[%clk 0:00:40]} 26. b4 {[%clk 0:01:04.4]} 26...
Qb2 {[%clk 0:00:33.3]} 27. a3 {[%clk 0:00:57.5]} 27... a5 {[%clk 0:00:32.1]} 28.
bxa5 {[%clk 0:00:50.9]} 28... Nxc5 {[%clk 0:00:30.6]} 29. Bc4 {[%clk 0:00:47.4]}
29... Qf6 {[%clk 0:00:23.5]} 30. Qg5 {[%clk 0:00:38.4]} 30... Qxg5 {[%clk
0:00:19.2]} 31. hxg5 {[%clk 0:00:37.8]} 31... Ne6 {[%clk 0:00:19.7]} 32. Bxd5
{[%clk 0:00:37.1]} 32... cxd5 {[%clk 0:00:20.6]} 33. g6 {[%clk 0:00:37.6]} 33...
Ra8 {[%clk 0:00:19.5]} 34. Rxd5 {[%clk 0:00:35.3]} 34... h4 {[%clk 0:00:18.4]}
35. gxf7+ {[%clk 0:00:33.8]} 35... Kxf7 {[%clk 0:00:18.5]} 36. Rd7+ {[%clk
0:00:34.1]} 36... Ke8 {[%clk 0:00:19.4]} 37. Rxb7 {[%clk 0:00:31.9]} 37... Ra6
{[%clk 0:00:20]} 38. Rb6 {[%clk 0:00:31.4]} 38... Rxb6 {[%clk 0:00:19.3]} 39.
axb6 {[%clk 0:00:32.3]} 39... Kd7 {[%clk 0:00:20]} 40. Rxe6 {[%clk 0:00:31.8]}
40... Kxe6 {[%clk 0:00:18.4]} 41. b7 {[%clk 0:00:32.7]} 41... h3 {[%clk
0:00:19.2]} 42. b8=Q {[%clk 0:00:31.6]} 42... h2+ {[%clk 0:00:20.1]} 43. Kxh2
{[%clk 0:00:31.4]} 43... Kf5 {[%clk 0:00:21]} 44. Qb5+ {[%clk 0:00:30.4]} 44...
Kg6 {[%clk 0:00:21.3]} 45. Kg3 {[%clk 0:00:30.1]} 45... Kh7 {[%clk 0:00:22.2]}
46. Kg4 {[%clk 0:00:30.4]} 46... g5 {[%clk 0:00:23.1]} 47. Kh5 {[%clk
0:00:29.9]} 47... Kh8 {[%clk 0:00:24]} 48. Qd7 {[%clk 0:00:29.7]} 48... g4
{[%clk 0:00:24.9]} 49. Kg6 {[%clk 0:00:29.7]} 49... g3 {[%clk 0:00:25.8]} 50.
Qe8# {[%clk 0:00:29.3]} 1-0

[Event "Early-Titled-Tuesday-Blitz-August-29-2023"]
[Site "Chess.com"]
[Date "2023.08.29"]
[Round "8"]
[White "Sunny_Star"]
[Black "Zampronha1971"]
[Result "0-1"]
[WhiteElo "2074"]
[BlackElo "2279"]
[TimeControl "180+1"]
[EndTime "9:26:52 PDT"]
[Termination "Zampronha1971 won on time"]

1. f4 {[%clk 0:02:55.9]} 1... c5 {[%clk 0:02:58.8]} 2. Nf3 {[%clk 0:02:55.6]}
2... Nc6 {[%clk 0:02:59.4]} 3. e4 {[%clk 0:02:53.6]} 3... d6 {[%clk 0:02:59.7]}
4. Nc3 {[%clk 0:02:53.6]} 4... a6 {[%clk 0:02:57.2]} 5. a4 {[%clk 0:02:53.3]}
5... e6 {[%clk 0:02:55.2]} 6. d4 {[%clk 0:02:52]} 6... cxd4 {[%clk 0:02:54.5]}
7. Nxd4 {[%clk 0:02:52.1]} 7... Nge7 {[%clk 0:02:53.1]} 8. Be3 {[%clk
0:02:46.4]} 8... Nxd4 {[%clk 0:02:52.5]} 9. Bxd4 {[%clk 0:02:46.2]} 9... Nc6
{[%clk 0:02:53]} 10. Be3 {[%clk 0:02:45.7]} 10... Be7 {[%clk 0:02:51.4]} 11. Qd2
{[%clk 0:02:45.6]} 11... O-O {[%clk 0:02:50.7]} 12. g3 {[%clk 0:02:40.1]} 12...
Qc7 {[%clk 0:02:50.9]} 13. Bg2 {[%clk 0:02:36]} 13... Na5 {[%clk 0:02:51.5]} 14.
Bf2 {[%clk 0:02:10.7]} 14... Nc4 {[%clk 0:02:47.8]} 15. Qc1 {[%clk 0:02:10.6]}
15... Bd7 {[%clk 0:02:45.3]} 16. O-O {[%clk 0:02:09.8]} 16... Rac8 {[%clk
0:02:44.9]} 17. Ne2 {[%clk 0:02:02.5]} 17... Bf6 {[%clk 0:02:35.9]} 18. c3
{[%clk 0:02:02.6]} 18... Rfd8 {[%clk 0:02:25.4]} 19. Rd1 {[%clk 0:01:57.1]}
19... Be8 {[%clk 0:02:25.2]} 20. Qc2 {[%clk 0:01:32.3]} 20... g6 {[%clk
0:02:21]} 21. b3 {[%clk 0:01:27]} 21... Na5 {[%clk 0:02:12.1]} 22. Rac1 {[%clk
0:01:26.5]} 22... b5 {[%clk 0:02:05.1]} 23. axb5 {[%clk 0:01:20.5]} 23... axb5
{[%clk 0:02:06]} 24. Nd4 {[%clk 0:01:14.3]} 24... Qb8 {[%clk 0:01:24.3]} 25. Qa2
{[%clk 0:01:05.7]} 25... Nc6 {[%clk 0:01:23.7]} 26. Qa6 {[%clk 0:00:40.2]} 26...
Nxd4 {[%clk 0:01:21]} 27. cxd4 {[%clk 0:00:38.3]} 27... Bg7 {[%clk 0:01:07.8]}
28. d5 {[%clk 0:00:31.4]} 28... exd5 {[%clk 0:01:04]} 29. exd5 {[%clk
0:00:28.5]} 29... b4 {[%clk 0:00:56.3]} 30. Bh3 {[%clk 0:00:03.2]} 30... Rxc1
{[%clk 0:00:53.9]} 31. Rxc1 {[%clk 0:00:03.1]} 31... Bc3 {[%clk 0:00:54]} 32.
Bb6 {[%clk 0:00:02.5]} 32... Qa8 {[%clk 0:00:46.8]} 33. Qxa8 {[%clk 0:00:01.4]}
33... Rxa8 {[%clk 0:00:47.7]} 34. Bc7 {[%clk 0:00:01.6]} 34... Ra6 {[%clk
0:00:21.9]} 0-1